[Event "CCT Julius Baer-D2 2024"]
[Site "Online"]
[Date "2024.09.27"]
[Round "1.1"]
[White "Oparin, Grigoriy"]
[Black "Lazavik, Denis"]
[Result "0-1"]
[ECO "D02"]
[WhiteElo "2683"]
[BlackElo "2752"]
[Annotator "TA"]
[PlyCount "166"]
[EventDate "2024.09.25"]
[EventType "swiss"]
[EventCountry "NET"]
[SourceTitle "playchess.com"]
[Source "ChessBase"]
[SourceQuality "1"]
[TimeControl "600+2"]

{[%evp 118,166,-12838,-12848,-29942,-29949,-29945,-12763,-7541,-2726,-2085,-29969,-29965,-29964,-5237,-29958,0,-29960,-29958,-29961,-29964,-1070,-620,-595,-479,-29969,-877,-29977,-29969,-29978,-29979,-29979,-29972,-29969,-29970,-29979,-29969,-1093,-1044,-29979,-29980,-29980,-29980,-29990,-29991,-29998,-29984,-29986,-29985,-29984,-29982]} 1. Nf3 {[%emt 0:00:02]} d5 {[%emt 0:00:03]} 2. g3 {[%emt 0:00:01]} Nf6 {[%emt 0:00:01]} 3. Bg2 {[%emt 0:00:01]} e6 {[%emt 0:00:00]} 4. O-O {[%emt 0:00:01]} Be7 {[%emt 0:00:01]} 5. d4 {[%emt 0:00:01]} O-O {[%emt 0:00:01]} 6. Bf4 {[%emt 0:00:01] D02: 1 d4 d5 2 Nf3 sidelines, including 2...Nf6 3 g3 and 2...Nf6 3 Bf4.} Nbd7 {[%emt 0:00:15]} 7. Nc3 {[%emt 0:00:03]} a6 {[%emt 0:00:52]} 8. Ne5 {[%emt 0:00:06]} c5 {[%emt 0:00:32]} 9. dxc5 {[%emt 0:00:48]} Nxc5 {[%emt 0:00:14]} 10. Qd4 $146 {[%emt 0:00:07]} ({Predecessor:} 10. Nd3 Bd7 11. Nxc5 Bxc5 12. e4 dxe4 13. Nxe4 Nxe4 14. Bxe4 Bc6 15. Bxc6 bxc6 16. Qxd8 Rfxd8 {½-½ Kokolias,K (2188)-Pountzas,H (2262) Athens Acropolis op 2006 (8)}) 10... Qb6 {[%emt 0:01:40]} 11. Rab1 {[%emt 0:01:34]} Rd8 {[%emt 0:00:16]} 12. Rfd1 {[%emt 0:00:05]} Ncd7 {[%emt 0:01:42]} 13. Qxb6 {[%emt 0:00:18]} Nxb6 {[%emt 0:00:00]} 14. e4 {[%emt 0:00:02]} dxe4 {[%emt 0:00:39]} 15. Nxe4 {[%emt 0:00:06]} Nfd5 {[%emt 0:00:22]} 16. Bd2 {[%emt 0:00:07]} f6 {[%emt 0:00:09]} 17. Nd3 {[%emt 0:00:05]} e5 {[%emt 0:01:40]} 18. Ba5 {[%emt 0:00:15]} Bg4 {[%emt 0:00:30]} 19. Rdc1 {[%emt 0:00:35]} Rdc8 {[%emt 0:00:13]} 20. Nc3 {[%emt 0:03:14]} Nxc3 {[%emt 0:00:41]} 21. bxc3 {[%emt 0:00:01]} Nc4 {[%emt 0:00:00]} 22. Bb4 {[%emt 0:00:01]} Nd2 {[%emt 0:00:43]} 23. Bxe7 {[%emt 0:00:47]} Nxb1 {[%emt 0:00:01]} 24. Rxb1 {[%emt 0:00:02]} Rxc3 {[%emt 0:00:00]} 25. Bxb7 {[%emt 0:00:39]} Re8 {[%emt 0:00:02]} 26. Bd5+ {[%emt 0:00:02]} Kh8 {[%emt 0:00:00]} 27. f3 {[%emt 0:01:13]} Bf5 {[%emt 0:00:07]} 28. Be4 {[%emt 0:00:27]} Bxe4 {[%emt 0:00:03]} 29. fxe4 {[%emt 0:00:00]} Rxc2 {[%emt 0:00:01]} 30. a3 {[%emt 0:00:04]} h6 {[%emt 0:00:01]} 31. Rb7 {[%emt 0:00:02]} Rec8 {[%emt 0:00:03]} 32. Bb4 {[%emt 0:00:06]} Rd8 {[%emt 0:00:02]} 33. Ne1 {[%emt 0:00:04]} Re2 {[%emt 0:00:02]} 34. Ra7 {[%emt 0:00:06]} Rd1 {[%emt 0:00:04]} 35. Kf1 {[%emt 0:00:00]} Rxh2 {[%emt 0:00:01]} 36. Rxa6 {[%emt 0:00:02]} h5 {[%emt 0:00:04]} 37. a4 {[%emt 0:00:04]} Rb1 {[%emt 0:00:01]} 38. Bc3 {[%emt 0:00:01]} Rc2 {[%emt 0:00:04]} 39. Ba5 {[%emt 0:00:04]} Rc4 {[%emt 0:00:01]} 40. Bd2 {[%emt 0:00:02]} Rd4 {[%emt 0:00:00]} 41. Ke2 {[%emt 0:00:01]} Rxe4+ {[%emt 0:00:02]} 42. Kf2 {[%emt 0:00:01]} Rb2 {[%emt 0:00:02]} 43. Nf3 {[%emt 0:00:00]} g5 {[%emt 0:00:06]} 44. Rxf6 {[%emt 0:00:04]} g4 {[%emt 0:00:01]} 45. Rh6+ {[%emt 0:00:01]} Kg7 {[%emt 0:00:02]} 46. Rxh5 {[%emt 0:00:00]} gxf3 {[%emt 0:00:03]} 47. Kxf3 {[%emt 0:00:00]} Rxa4 {[%emt 0:00:01]} 48. Be3 {[%emt 0:00:04]} Kf6 {[%emt 0:00:02]} 49. Rh6+ {[%emt 0:00:01]} Kf7 {[%emt 0:00:02]} 50. Rh5 {[%emt 0:00:02]} Ke6 {[%emt 0:00:01]} 51. Rh6+ {[%emt 0:00:01]} Kd5 {[%emt 0:00:00]} 52. g4 {[%emt 0:00:03]} Rb3 {[%emt 0:00:01]} 53. Rh1 {[%emt 0:00:01]} Raa3 {[%emt 0:00:01]} 54. Rd1+ {[%emt 0:00:01]} Ke6 {[%emt 0:00:01]} 55. Re1 {[%emt 0:00:00]} Kf6 {[%emt 0:00:02]} 56. Ke4 {[%emt 0:00:02]} Ra4+ {[%emt 0:00:01]} 57. Kf3 {[%emt 0:00:01]} Ke6 {[%emt 0:00:01]} 58. Kg3 {[%emt 0:00:02]} Kd5 {[%emt 0:00:02]} 59. Kf3 {[%emt 0:00:01]} Rc4 {[%emt 0:00:02]} (59... Rf4+ $142 60. Kg2 Rxg4+ 61. Kf2 Rh4 62. Kg3 Rf4 63. Kg2 Rb2+) 60. g5 $19 {[%emt 0:00:02]} Ke6 {[%emt 0:00:01]} 61. Kg2 {[%emt 0:00:05]} Rc2+ {[%emt 0:00:03]} 62. Kg3 {[%emt 0:00:03]} Rcc3 {[%emt 0:00:01]} 63. Kf2 {[%emt 0:00:01]} Kf5 {[%emt 0:00:01]} 64. Bd2 {[%emt 0:00:03]} Rc2 {[%emt 0:00:01]} 65. Ke2 {[%emt 0:00:02]} Rbb2 {[%emt 0:00:01]} (65... e4 $142 66. Rc1 Rcb2 67. Rc5+ Ke6 68. Kd1 e3 69. Bc1 Rh2 70. Ke1 Rb1 71. Rc6+ Kd5 72. Rc8 Rxc1+ 73. Rxc1 Rh1+ 74. Ke2 Rxc1 75. Kxe3 Rg1 76. Kf4 Rg2 (76... Ke6 77. Ke4 Rxg5 78. Ke3 Kd5 79. Kf3 Kd4 80. Kf4 Re5 81. Kf3 Re4 82. Kf2 Re3 83. Kf1 Kd3 84. Kf2 Kd2 85. Kf1 Re2 86. Kg1 Ke1 87. Kh1 Kf2 88. Kh2 Re3 89. Kh1 Rh3#) 77. Kf5 Rf2+ 78. Kg4 Ke4 79. Kg3 Rf1 80. Kg2 Rf5 81. g6 Ke3 82. Kh3 Rg5 83. Kh4 Kf4 (83... Rxg6 84. Kh5 Rg1 85. Kh4 Kf3 86. Kh5 Kf4 87. Kh6 Kf5 88. Kh7 Kf6 89. Kh8 Kf7 90. Kh7 Rh1#) 84. g7 Rxg7 85. Kh5 Rg1 86. Kh6 Kf5 87. Kh7 Kf6 88. Kh8 Kf7 89. Kh7 Rh1#) 66. Rd1 {[%emt 0:00:00]} Rb3 $2 {[%emt 0:00:07]} (66... Rc3 {mates} 67. Rb1 Rxb1 68. Bxc3 Rb3 (68... Kxg5 69. Bxe5 $11) 69. Bd2 Rh3 70. Kf2 Rh2+ 71. Ke3 Kxg5 72. Be1 Kf5 73. Bb4 Rh3+ 74. Kd2 Ke4 75. Ba5 Kf3 76. Kd3 e4+ 77. Kd4 e3 78. Be1 e2 79. Ke5 Ke3 (79... Rh1 {gets mated.} 80. Bb4 e1=Q+ 81. Bxe1 Rxe1+ 82. Kd5 Rd1+ 83. Kc4 Ke3 84. Kc5 Ke4 85. Kc6 Rd5 86. Kc7 Ke5 87. Kc6 Ke6 88. Kc7 Rd6 89. Kc8 Rc6+ 90. Kb8 Kd7 91. Kb7 Rg6 92. Kb8 Kc6 93. Ka7 Rg8 94. Ka6 Ra8#) 80. Bb4 Rh4 (80... Rh5+ {is a self mate.} 81. Ke6 Rh1 82. Bc5+ Kd3 83. Bb4 Rd1 84. Kf6 Rd2 85. Bxd2 Kxd2 86. Kg7 e1=Q 87. Kf8 Qe6 88. Kg7 Ke3 89. Kf8 Kf4 90. Kg7 Qe7+ 91. Kh8 Kf5 92. Kg8 Kg6 93. Kh8 Qh7#) 81. Bc3 Rc4 82. Be1 Rc1 83. Bg3 Kf3 (83... e1=B 84. Bf4+ Kf3 85. Bxc1 $11) 84. Bh4 Rh1 (84... e1=B 85. Be7 $19) 85. Bf6 e1=Q+ (85... e1=B 86. Kd5 $19) 86. Kd5 Rh7 (86... Rh5+ 87. Kd6 Rh6 88. Kd5 Rxf6 89. Kc4 Qe4+ 90. Kb5 Rc6 91. Ka5 Qb1 92. Ka4 Ra6#) 87. Bg5 Qa5+ 88. Kd6 Qc7+ (88... Qxg5 89. Kc6 Rh6+ 90. Kd7 Qg7+ 91. Ke8 Rh8#) 89. Kd5 Rd7+ (89... Qa5+ 90. Kd4 Rd7+ 91. Kc4 Rc7+ 92. Kd4 Qxg5 93. Kd3 Qe3#) 90. Ke6 Rd6+ 91. Kf5 Qc5#) 67. Rf1+ $2 {[%emt 0:00:02][%mdl 8192]} (67. Re1 $11 Rcb2 68. Rf1+ Ke4 69. Rh1) 67... Ke4 {[%emt 0:00:01]} 68. Rg1 {[%emt 0:00:03]} Rbb2 {[%emt 0:00:03]} 69. Rd1 {[%emt 0:00:00]} Kf5 {[%emt 0:00:06]} 70. Rf1+ {[%emt 0:00:01]} Kg6 {[%emt 0:00:01]} 71. Rd1 {[%emt 0:00:01]} (71. Rf6+ $19 Kh5 72. Rd6) 71... Rc4 {[%emt 0:00:02]} (71... Rc8 $142 72. Kd3 Rd8+ 73. Ke2 Rd4 74. Ke1 Rh4 75. Ke2 Rh3 76. Rc1 Rh2+ 77. Kf3 Rhxd2 (77... Rbxd2 $2 78. Rc8 $19) 78. Rc8 Rb3+ (78... Kxg5 $2 79. Rg8+ Kf6 80. Ke3 $19) 79. Ke4 Re2+ (79... Kxg5 $2 80. Rf8 $19) 80. Kd5 Rd3+ (80... Kxg5 $2 81. Rg8+ Kf4 82. Rf8+ Kg3 83. Rg8+ Kf2 84. Rf8+ Rf3 85. Rh8 $19) 81. Ke6 Kxg5 82. Rf8 Kg4 83. Rf7 Kg3 84. Rg7+ Kf2 85. Rf7+ Rf3 86. Rh7 e4 87. Kd5 e3 88. Rh2+ Kf1 89. Rh6 Rd2+ 90. Ke4 Kg2 91. Rg6+ Kf2 92. Rh6 e2 93. Rh2+ Kg3 94. Rxe2 Rxe2+ 95. Kd4 Kf4 96. Kc5 Rc3+ 97. Kb4 Rec2 98. Ka5 Rb3 99. Ka4 Rcb2 100. Ka5 Ra3#) 72. Ke3 {[%emt 0:00:05]} Rd4 {[%emt 0:00:01]} 73. Ke2 {[%emt 0:00:09]} Ra2 {[%emt 0:00:01]} 74. Ke1 {[%emt 0:00:02]} Re4+ {[%emt 0:00:05]} 75. Kf2 {[%emt 0:00:01]} Rh4 {[%emt 0:00:02]} 76. Ke3 {[%emt 0:00:01]} Rd4 {[%emt 0:00:04]} 77. Ke2 {[%emt 0:00:01]} Kf5 {[%emt 0:00:01]} 78. Rf1+ {[%emt 0:00:02]} Ke4 {[%emt 0:00:01]} 79. Rd1 {[%emt 0:00:01]} Rd3 {[%emt 0:00:02]} 80. Ke1 {[%emt 0:00:06]} Kf3 {[%emt 0:00:02]} 81. Bc1 {[%emt 0:00:04]} Rxd1+ {[%emt 0:00:01]} 82. Kxd1 {[%emt 0:00:01]} Rg2 {[%emt 0:00:01]} 83. Bd2 {[%emt 0:00:01]} e4 {[%emt 0:00:00]} 0-1

[Event "CCT Julius Baer-D2 2024"]
[Site "Online"]
[Date "2024.09.27"]
[Round "1.1"]
[White "Bortnyk, Oleksandr"]
[Black "Daneshvar, Bardiya"]
[Result "0-1"]
[ECO "B50"]
[WhiteElo "2679"]
[BlackElo "2661"]
[Annotator "ChessBase"]
[PlyCount "134"]
[EventDate "2024.09.25"]
[EventType "swiss"]
[EventCountry "NET"]
[SourceTitle "playchess.com"]
[Source "ChessBase"]
[SourceQuality "1"]
[TimeControl "600+2"]

1. e4 {[%emt 0:00:07]} c5 {[%emt 0:00:03]} 2. Nf3 {[%emt 0:00:09]} d6 {[%emt 0:00:02]} 3. Bc4 {[%emt 0:00:08]} Nf6 {[%emt 0:00:04]} 4. d3 {[%emt 0:00:03]} g6 {[%emt 0:00:04]} 5. e5 {[%emt 0:00:03]} dxe5 {[%emt 0:00:10]} 6. Nxe5 {[%emt 0:00:01]} e6 {[%emt 0:00:01]} 7. Qf3 {[%emt 0:01:46]} Bd6 {[%emt 0:01:09]} 8. Bb5+ {[%emt 0:00:09]} Kf8 {[%emt 0:00:12]} 9. Bh6+ {[%emt 0:01:10]} Kg8 {[%emt 0:00:02]} 10. Nc4 {[%emt 0:00:00]} Bf8 {[%emt 0:00:28]} 11. Bg5 {[%emt 0:00:31]} Kg7 {[%emt 0:00:09]} 12. Nc3 {[%emt 0:00:04]} h6 {[%emt 0:00:05]} 13. Bf4 {[%emt 0:00:04]} Nd5 {[%emt 0:00:21]} 14. Nxd5 {[%emt 0:02:18]} exd5 {[%emt 0:00:05]} 15. Ne3 {[%emt 0:00:15]} Be6 {[%emt 0:00:52]} 16. O-O {[%emt 0:00:26]} Nc6 {[%emt 0:00:19]} 17. Bxc6 {[%emt 0:00:20]} bxc6 {[%emt 0:00:00]} 18. Be5+ {[%emt 0:00:00]} f6 {[%emt 0:00:03]} 19. Bg3 {[%emt 0:00:00]} h5 {[%emt 0:00:19]} 20. h3 {[%emt 0:00:06]} Qd7 {[%emt 0:00:03]} 21. Rfe1 {[%emt 0:00:04]} Re8 {[%emt 0:00:06]} 22. c4 {[%emt 0:00:17]} d4 {[%emt 0:00:26]} 23. Nf1 {[%emt 0:00:04]} h4 {[%emt 0:00:25]} 24. Bh2 {[%emt 0:00:04]} Bd6 {[%emt 0:00:02]} 25. Re2 {[%emt 0:00:27]} Bxh2+ {[%emt 0:00:13]} 26. Nxh2 {[%emt 0:00:05]} Bf5 {[%emt 0:00:00]} 27. Rae1 {[%emt 0:00:01]} Rxe2 {[%emt 0:00:03]} 28. Qxe2 {[%emt 0:00:01]} Kf7 {[%emt 0:00:02]} 29. Qd2 {[%emt 0:00:27]} Re8 {[%emt 0:00:08]} 30. Nf3 {[%emt 0:00:08]} Rxe1+ {[%emt 0:00:14]} 31. Nxe1 {[%emt 0:00:00]} g5 {[%emt 0:00:15]} 32. Kf1 {[%emt 0:00:03]} Qc7 {[%emt 0:00:08]} 33. Qe2 {[%emt 0:00:09]} a5 {[%emt 0:00:16]} 34. Qh5+ {[%emt 0:00:04]} Kg7 {[%emt 0:00:13]} 35. Qe8 {[%emt 0:00:02]} Bg6 {[%emt 0:00:02]} 36. Qe6 {[%emt 0:00:02]} Bf7 {[%emt 0:00:06]} 37. Qf5 {[%emt 0:00:01]} Qd6 {[%emt 0:00:23]} 38. Qg4 {[%emt 0:00:26]} Kh6 {[%emt 0:00:35]} 39. f4 {[%emt 0:00:08]} Qxf4+ {[%emt 0:00:25]} 40. Qxf4 {[%emt 0:00:03]} gxf4 {[%emt 0:00:00]} 41. Nf3 {[%emt 0:00:01]} Bh5 {[%emt 0:00:42]} 42. Kf2 {[%emt 0:00:13]} Bg6 {[%emt 0:00:22]} 43. Ke2 {[%emt 0:00:04]} Kh5 {[%emt 0:00:26]} 44. Kd2 {[%emt 0:00:09]} Bf5 {[%emt 0:00:05]} 45. Kc2 {[%emt 0:00:06]} Bg6 {[%emt 0:00:15]} 46. Kd2 {[%emt 0:00:08]} Bf5 {[%emt 0:00:01]} 47. Ke2 {[%emt 0:00:06]} Bg6 {[%emt 0:00:31]} 48. Nd2 {[%emt 0:00:01]} Kg5 {[%emt 0:00:04]} 49. Nb3 {[%emt 0:00:28]} f3+ {[%emt 0:00:06]} 50. Kxf3 {[%emt 0:00:05]} Bxd3 {[%emt 0:00:03]} 51. Nxa5 {[%emt 0:00:01]} Kf5 {[%emt 0:00:05]} 52. b3 {[%emt 0:00:04]} Be4+ {[%emt 0:00:10]} 53. Kf2 {[%emt 0:00:01]} d3 {[%emt 0:00:04]} 54. Nb7 {[%emt 0:00:01]} Bxg2 {[%emt 0:00:08]} 55. a4 {[%emt 0:00:03]} d2 {[%emt 0:00:12]} 56. Ke2 {[%emt 0:00:00]} Bxh3 {[%emt 0:00:00]} 57. a5 {[%emt 0:00:01]} Bg4+ {[%emt 0:00:05]} 58. Kxd2 {[%emt 0:00:01]} h3 {[%emt 0:00:00]} 59. Nd6+ {[%emt 0:00:05]} Kf4 {[%emt 0:00:02]} 60. a6 {[%emt 0:00:02]} h2 {[%emt 0:00:01]} 61. a7 {[%emt 0:00:00]} h1=Q {[%emt 0:00:00]} 62. a8=Q {[%emt 0:00:01]} Qd1+ {[%emt 0:00:01]} 63. Kc3 {[%emt 0:00:00]} Qxd6 {[%emt 0:00:01]} 64. Qh8 {[%emt 0:00:02]} Qd4+ {[%emt 0:00:01]} 65. Kc2 {[%emt 0:00:01]} Bf5+ {[%emt 0:00:01]} 66. Kc1 {[%emt 0:00:01]} Qc3+ {[%emt 0:00:00]} 67. Kd1 {[%emt 0:00:00]} Bg4# {[%emt 0:00:01]} 0-1

[Event "CCT Julius Baer-D2 2024"]
[Site "Online"]
[Date "2024.09.27"]
[Round "1.1"]
[White "Bok, Benjamin"]
[Black "Macho_"]
[Result "1-0"]
[ECO "A13"]
[WhiteElo "2676"]
[BlackElo "2586"]
[Annotator "ChessBase"]
[PlyCount "81"]
[EventDate "2024.09.25"]
[EventType "swiss"]
[EventCountry "NET"]
[SourceTitle "playchess.com"]
[Source "ChessBase"]
[SourceQuality "1"]
[TimeControl "600+2"]

1. c4 {[%emt 0:00:04]} e6 {[%emt 0:00:11]} 2. Nf3 {[%emt 0:00:11]} Nf6 {[%emt 0:00:10]} 3. b3 {[%emt 0:00:01]} d5 {[%emt 0:00:07]} 4. Bb2 {[%emt 0:00:02]} Bd6 {[%emt 0:00:11]} 5. g3 {[%emt 0:00:02]} c5 {[%emt 0:00:46]} 6. cxd5 {[%emt 0:00:03]} exd5 {[%emt 0:00:01]} 7. Bg2 {[%emt 0:00:02]} O-O {[%emt 0:00:47]} 8. O-O {[%emt 0:00:03]} d4 {[%emt 0:00:36]} 9. e3 {[%emt 0:00:27]} Nc6 {[%emt 0:00:02]} 10. Na3 {[%emt 0:00:11]} Bg4 {[%emt 0:00:09]} 11. h3 {[%emt 0:00:27]} Bh5 {[%emt 0:00:02]} 12. Re1 {[%emt 0:00:10]} a6 {[%emt 0:00:17]} 13. Nc4 {[%emt 0:01:03]} b5 {[%emt 0:00:31]} 14. Nxd6 {[%emt 0:00:29]} Qxd6 {[%emt 0:00:00]} 15. exd4 {[%emt 0:00:16]} cxd4 {[%emt 0:00:29]} 16. g4 {[%emt 0:00:32]} Bg6 {[%emt 0:00:01]} 17. Nh4 {[%emt 0:00:02]} Rac8 {[%emt 0:00:54]} 18. Nxg6 {[%emt 0:00:29]} hxg6 {[%emt 0:00:42]} 19. Qf3 {[%emt 0:00:32]} Nb4 {[%emt 0:00:01]} 20. Ba3 {[%emt 0:00:15]} Rc2 {[%emt 0:00:03]} 21. d3 {[%emt 0:02:33]} a5 {[%emt 0:00:11]} 22. Re2 {[%emt 0:00:25]} Rxe2 {[%emt 0:00:28]} 23. Qxe2 {[%emt 0:00:00]} Re8 {[%emt 0:00:09]} 24. Qd2 {[%emt 0:00:05]} Nd7 {[%emt 0:00:33]} 25. Re1 {[%emt 0:00:28]} Rxe1+ {[%emt 0:00:25]} 26. Qxe1 {[%emt 0:00:00]} Ne5 {[%emt 0:00:00]} 27. Qe4 {[%emt 0:00:09]} g5 {[%emt 0:00:12]} 28. Qa8+ {[%emt 0:00:11]} Qf8 {[%emt 0:00:10]} 29. Qxa5 {[%emt 0:00:13]} Nexd3 {[%emt 0:00:04]} 30. Bf1 {[%emt 0:00:37]} Nc6 {[%emt 0:00:49]} 31. Bxf8 {[%emt 0:00:23]} Nxa5 {[%emt 0:00:01]} 32. Bxd3 {[%emt 0:00:02]} Kxf8 {[%emt 0:00:02]} 33. Bxb5 {[%emt 0:00:01]} Ke7 {[%emt 0:00:00]} 34. Kf1 {[%emt 0:00:03]} Kd6 {[%emt 0:00:04]} 35. b4 {[%emt 0:00:02]} Nb7 {[%emt 0:00:02]} 36. Ke2 {[%emt 0:00:01]} Kd5 {[%emt 0:00:04]} 37. Kd3 {[%emt 0:00:09]} Nd6 {[%emt 0:00:01]} 38. a4 {[%emt 0:00:02]} Ke5 {[%emt 0:01:11]} 39. Bc6 {[%emt 0:00:06]} Nc8 {[%emt 0:00:04]} 40. a5 {[%emt 0:00:05]} Ne7 {[%emt 0:00:01]} 41. b5 {[%emt 0:00:07]} 1-0

[Event "CCT Julius Baer-D2 2024"]
[Site "Online"]
[Date "2024.09.27"]
[Round "1.1"]
[White "Anton Guijarro, David"]
[Black "Durarbayli, Vasif"]
[Result "1-0"]
[ECO "B53"]
[WhiteElo "2654"]
[BlackElo "2662"]
[Annotator "ChessBase"]
[PlyCount "135"]
[EventDate "2024.09.25"]
[EventType "swiss"]
[EventCountry "NET"]
[SourceTitle "playchess.com"]
[Source "ChessBase"]
[SourceQuality "1"]
[TimeControl "600+2"]

1. e4 {[%emt 0:00:04]} c5 {[%emt 0:00:03]} 2. Nf3 {[%emt 0:00:01]} d6 {[%emt 0:00:01]} 3. d4 {[%emt 0:00:02]} cxd4 {[%emt 0:00:01]} 4. Qxd4 {[%emt 0:00:00]} Nf6 {[%emt 0:00:17]} 5. Bg5 {[%emt 0:00:03]} Nc6 {[%emt 0:00:15]} 6. Bb5 {[%emt 0:00:03]} Qa5+ {[%emt 0:00:19]} 7. Nc3 {[%emt 0:00:02]} Qxb5 {[%emt 0:00:01]} 8. Nxb5 {[%emt 0:00:01]} Nxd4 {[%emt 0:00:01]} 9. Nfxd4 {[%emt 0:00:01]} Nxe4 {[%emt 0:00:17]} 10. Nc7+ {[%emt 0:00:02]} Kd8 {[%emt 0:00:03]} 11. Nxa8 {[%emt 0:00:02]} Nxg5 {[%emt 0:00:02]} 12. Nb5 {[%emt 0:00:03]} a6 {[%emt 0:00:26]} 13. Nc3 {[%emt 0:00:03]} b5 {[%emt 0:00:56]} 14. h4 {[%emt 0:01:41]} Ne6 {[%emt 0:00:35]} 15. a4 {[%emt 0:00:12]} b4 {[%emt 0:00:29]} 16. Nd5 {[%emt 0:00:03]} Bb7 {[%emt 0:00:08]} 17. Nab6 {[%emt 0:00:02]} Nd4 {[%emt 0:01:54]} 18. O-O-O {[%emt 0:00:21]} Nc6 {[%emt 0:00:01]} 19. Rh3 {[%emt 0:05:02]} e6 {[%emt 0:00:11]} 20. Rf3 {[%emt 0:00:08]} Ne5 {[%emt 0:00:40]} 21. Rb3 {[%emt 0:00:01]} a5 {[%emt 0:01:40]} 22. Ne3 {[%emt 0:00:24]} Kc7 {[%emt 0:00:11]} 23. Nbc4 {[%emt 0:00:13]} Nc6 {[%emt 0:00:16]} 24. Rbd3 {[%emt 0:00:21]} d5 {[%emt 0:00:01]} 25. Nxd5+ {[%emt 0:00:01]} exd5 {[%emt 0:00:00]} 26. Rxd5 {[%emt 0:00:00]} Bc8 {[%emt 0:00:27]} 27. Nxa5 {[%emt 0:00:18]} Be7 {[%emt 0:00:09]} 28. g3 {[%emt 0:00:50]} Bg4 {[%emt 0:00:22]} 29. R1d2 {[%emt 0:00:20]} Ra8 {[%emt 0:00:15]} 30. Nxc6 {[%emt 0:00:13]} Kxc6 {[%emt 0:00:00]} 31. b3 {[%emt 0:00:03]} Be6 {[%emt 0:00:03]} 32. R5d4 {[%emt 0:00:07]} Kc5 {[%emt 0:00:15]} 33. Re4 {[%emt 0:00:03]} Bf6 {[%emt 0:00:02]} 34. Kd1 {[%emt 0:00:13]} Bc3 {[%emt 0:00:04]} 35. Rd3 {[%emt 0:00:01]} Bd5 {[%emt 0:00:37]} 36. Re7 {[%emt 0:00:02]} Kc6 {[%emt 0:00:06]} 37. Ke2 {[%emt 0:00:05]} Bf6 {[%emt 0:00:02]} 38. Ree3 {[%emt 0:00:01]} Rb8 {[%emt 0:00:04]} 39. f3 {[%emt 0:00:02]} Be6 {[%emt 0:00:01]} 40. Re4 {[%emt 0:00:01]} Bd5 {[%emt 0:00:01]} 41. Ree3 {[%emt 0:00:01]} h5 {[%emt 0:00:01]} 42. Kf1 {[%emt 0:00:03]} Be6 {[%emt 0:00:02]} 43. Re4 {[%emt 0:00:01]} Bd5 {[%emt 0:00:00]} 44. Ree3 {[%emt 0:00:01]} Ra8 {[%emt 0:00:04]} 45. Kg2 {[%emt 0:00:02]} Ra5 {[%emt 0:00:01]} 46. Kf2 {[%emt 0:00:03]} Rc5 {[%emt 0:00:01]} 47. Re2 {[%emt 0:00:01]} Be6 {[%emt 0:00:02]} 48. Rdd2 {[%emt 0:00:02]} Bf5 {[%emt 0:00:05]} 49. Kf1 {[%emt 0:00:01]} Kc7 {[%emt 0:00:01]} 50. Kf2 {[%emt 0:00:04]} Rc3 {[%emt 0:00:04]} 51. Kg2 {[%emt 0:00:02]} Rc5 {[%emt 0:00:01]} 52. Kf2 {[%emt 0:00:01]} g6 {[%emt 0:00:01]} 53. Kg2 {[%emt 0:00:02]} Bc3 {[%emt 0:00:04]} 54. Rd1 {[%emt 0:00:01]} Be5 {[%emt 0:00:01]} 55. Rdd2 {[%emt 0:00:01]} Bc3 {[%emt 0:00:04]} 56. Rd1 {[%emt 0:00:01]} Be6 {[%emt 0:00:01]} 57. Rd3 {[%emt 0:00:04]} Bf6 {[%emt 0:00:03]} 58. Kf2 {[%emt 0:00:03]} Bf5 {[%emt 0:00:01]} 59. Rdd2 {[%emt 0:00:01]} Kc6 {[%emt 0:00:01]} 60. Kg2 {[%emt 0:00:01]} Bc3 {[%emt 0:00:02]} 61. Rd8 {[%emt 0:00:01]} Bg7 {[%emt 0:00:03]} 62. Rdd2 {[%emt 0:00:02]} Bh6 {[%emt 0:00:01]} 63. Rd4 {[%emt 0:00:02]} Bxc2 {[%emt 0:00:04]} 64. Rxb4 {[%emt 0:00:02]} Bd3 {[%emt 0:00:01]} 65. Ra2 {[%emt 0:00:02]} Be3 {[%emt 0:00:02]} 66. a5 {[%emt 0:00:02]} Rc1 {[%emt 0:00:05]} 67. a6 {[%emt 0:00:02]} Ba7 {[%emt 0:00:02]} 68. Rb7 {[%emt 0:00:01]} 1-0